bitfinex/quotes_ETHUSD_20241013
["timestamp","ask_amount","ask_price","bid_price","bid_amount"]
[1728819908476,7.3456888,2463.5,2463.4,1.33125622]
[1728819908885,8.19466549,2463.5,2463.4,1.33125622]
[1728819909592,9.16916637,2463.5,2463.4,0.50785622]
[1728819909805,10.73991054,2463.5,2463.4,0.50785622]
[1728819910092,10.87037437,2463.5,2463.4,0.50785622]
[1728819910293,9.16914243,2463.5,2463.4,0.50785622]
[1728819910598,8.61914243,2463.5,2463.4,1.32605622]
[1728819910893,7.3456888,2463.5,2463.4,1.32605622]
[1728819911104,8.19465295,2463.5,2463.4,1.32605622]
[1728819912456,8.19464659,2463.5,2463.4,1.32605622]
[1728819912658,7.3456888,2463.5,2463.4,1.32605622]
[1728819912898,8.19464827,2463.5,2463.4,1.32605622]
[1728819913884,8.19462816,2463.5,2463.4,1.32605622]
[1728819914284,4.13536816,2463.5,2463.4,1.32605622]
[1728819915018,3.2864288,2463.5,2463.4,1.32605622]
[1728819916251,0.2864288,2463.5,2463.4,1.32605622]
[1728819916909,0.2864288,2463.5,2463.4,1.86463584]
[1728819917085,4.05895,2463.7,2463.4,1.04643584]
[1728819917396,4.90779936,2463.8,2463.6,0.75845622]
[1728819917602,4.90779936,2463.8,2463.7,0.00785622]
[1728819917812,4.90779936,2463.8,2463.7,0.75845622]
[1728819918971,4.90747936,2464.0,2463.7,0.75845622]
[1728819919158,0.84893936,2464.1,2463.9,0.75845622]
[1728819919359,5.33166363,2464.2,2463.9,0.75845622]
[1728819919360,4.90714936,2464.2,2463.9,0.75845622]
[1728819919586,0.84893936,2464.3,2463.9,0.75845622]
[1728819919788,4.90680936,2464.4,2464.0,0.7506]
[1728819920030,1.27345363,2464.5,2464.3,0.75845622]
[1728819920031,4.90663936,2464.5,2464.3,0.75845622]
[1728819920345,0.84893936,2464.5,2464.3,0.75845622]
[1728819920500,4.90631936,2464.7,2464.3,0.75845622]
[1728819920707,4.05746,2464.6,2464.3,0.75845622]
[1728819921423,4.05753,2464.6,2464.3,0.75845622]
[1728819921938,4.05773,2464.5,2464.3,1.2882914]
[1728819922148,4.05773,2464.5,2464.3,0.75845622]
[1728819923045,4.05778,2464.4,2464.3,0.75845622]
[1728819923541,4.05778,2464.4,2464.3,0.00785622]
[1728819924303,4.05778,2464.4,2464.3,0.75845622]
[1728819927402,4.05729,2464.7,2464.3,0.75845622]
[1728819927626,3.0,2464.7,2464.5,0.75845622]
[1728819927825,3.0,2464.7,2464.6,0.00785622]
[1728819928065,4.05722,2464.8,2464.6,0.75845622]
[1728819928651,4.05722,2464.8,2464.6,1.24007884]
[1728819929287,4.05692,2465.0,2464.6,0.48947884]
[1728819929573,4.05692,2465.0,2464.7,0.81]
[1728819929774,4.05692,2465.0,2464.9,0.00785622]
[1728819930269,4.32527596,2465.0,2464.9,0.00785622]
[1728819931240,4.32527596,2465.0,2464.9,0.81785622]
[1728819939144,0.26835596,2465.0,2464.9,0.81785622]
[1728819939441,4.05641,2465.3,2464.9,1.30536084]
[1728819939640,0.31019093,2465.0,2464.9,1.29750462]
[1728819939826,8.11283,2465.3,2464.9,1.30536084]
[1728819940024,8.11283,2465.3,2465.0,0.53624608]
[1728819940280,4.05646,2465.2,2465.0,0.53624608]
[1728819940475,4.05646,2465.2,2465.1,0.00785622]
[1728819941276,4.05623,2465.4,2465.2,0.7786]
[1728819941477,4.05631,2465.3,2465.2,0.7786]
[1728819945204,4.35623398,2465.3,2465.2,0.7786]
[1728819947410,4.05655,2465.2,2465.0,0.7786]
[1728819947588,4.05655,2465.2,2464.7,0.7786]
[1728819947589,0.7957,2465.2,2464.7,0.7786]
[1728819947797,3.7957,2465.2,2464.7,0.7786]
[1728819948086,4.05705,2464.9,2464.7,0.7786]
[1728819948467,0.29948398,2464.8,2464.7,0.7786]
[1728819948972,4.05736,2464.7,2464.3,0.7786]
[1728819949190,4.05736,2464.7,2464.6,0.00785622]
[1728819949572,4.35684398,2464.7,2464.6,0.00785622]
[1728819959151,7.35684398,2464.7,2464.6,0.00785622]
[1728819960836,8.12584398,2464.7,2464.6,0.00785622]
[1728819961144,9.42903431,2464.7,2464.6,0.00785622]
[1728819961376,10.27797367,2464.7,2464.6,0.00785622]
[1728819963330,10.70248794,2464.7,2464.6,0.00785622]
[1728819963636,9.42903431,2464.7,2464.6,0.00785622]
[1728819964056,10.70248794,2464.7,2464.6,0.00785622]
[1728819964244,9.42903431,2464.7,2464.6,0.00785622]
[1728819964460,10.70248794,2464.7,2464.6,0.00785622]
[1728819965747,10.83240645,2464.7,2464.6,0.00785622]
[1728819966047,8.62979465,2464.7,2464.6,0.00785622]
[1728819966353,8.2055038,2464.7,2464.6,0.00785622]
[1728819967076,7.35684398,2464.7,2464.6,0.00785622]
[1728819967371,8.2055038,2464.7,2464.6,0.00785622]
[1728819968165,8.62979465,2464.7,2464.6,0.00785622]
[1728819968364,10.14516065,2464.7,2464.6,0.00785622]
[1728819968632,12.74237416,2464.7,2464.6,0.00785622]
[1728819971947,13.29237416,2464.7,2464.6,0.00785622]
[1728819972145,11.59462879,2464.7,2464.6,0.00785622]
[1728819972545,13.71628649,2464.7,2464.6,0.00785622]
[1728819973632,11.59462879,2464.7,2464.6,0.00785622]
[1728819977538,13.71309682,2464.7,2464.6,0.00785622]
[1728819977792,11.59462879,2464.7,2464.6,0.00785622]
[1728819979064,13.71271203,2464.7,2464.6,0.00785622]
[1728819980758,13.28883789,2464.7,2464.6,0.00785622]
[1728819980955,7.45447189,2464.7,2464.6,0.00785622]
[1728819981254,5.62748355,2464.7,2464.6,0.00785622]
[1728819981457,5.62748355,2464.7,2464.6,0.76115622]
[1728819981458,4.35684398,2464.7,2464.6,0.76115622]
[1728819982197,0.29948398,2464.7,2464.6,0.76115622]
[1728819982365,4.05712,2464.8,2464.6,0.76115622]
[1728819982692,0.29926311,2464.7,2464.6,0.76115622]
[1728819983200,4.35654311,2464.7,2464.6,0.76115622]
[1728819983402,4.05728,2464.7,2464.6,0.76115622]
[1728819983557,4.35654311,2464.7,2464.6,0.76115622]
[1728819985657,4.35654311,2464.7,2464.6,0.00785622]
[1728819987903,5.20364859,2464.7,2464.6,0.00785622]
[1728819988352,11.33005989,2464.7,2464.6,0.00785622]
[1728819988557,13.14018377,2464.7,2464.6,0.00785622]
[1728819989094,13.56452525,2464.7,2464.6,0.00785622]
[1728819989460,11.44597467,2464.7,2464.6,0.00785622]
[1728819991400,13.56525135,2464.7,2464.6,0.00785622]
[1728819991571,11.44597467,2464.7,2464.6,0.00785622]
[1728819991903,13.56521705,2464.7,2464.6,0.00785622]
[1728819992472,13.56562028,2464.7,2464.6,0.00785622]
[1728819992662,11.44597467,2464.7,2464.6,0.00785622]
[1728819995871,12.26067786,2464.7,2464.6,0.00785622]
[1728819996199,11.42857786,2464.7,2464.6,0.00785622]
[1728819996560,9.30810294,2464.7,2464.6,0.00785622]
[1728819997467,11.42862611,2464.7,2464.6,0.00785622]
[1728819998172,11.00464637,2464.7,2464.6,0.00785622]
[1728819999769,11.42862611,2464.7,2464.6,0.00785622]
[1728820000008,9.30810294,2464.7,2464.6,0.00785622]
[1728820000506,11.42862611,2464.7,2464.6,0.00785622]
[1728820003810,9.30810294,2464.7,2464.6,0.00785622]
[1728820007212,11.01761966,2464.7,2464.6,0.00785622]
[1728820009376,9.30810294,2464.7,2464.6,0.00785622]
[1728820009606,11.42982231,2464.7,2464.6,0.00785622]
[1728820009974,9.30810294,2464.7,2464.6,0.00785622]
[1728820010174,11.42974875,2464.7,2464.6,0.00785622]
[1728820010400,9.30810294,2464.7,2464.6,0.00785622]
[1728820010604,11.42955946,2464.7,2464.6,0.00785622]
[1728820012814,11.42947179,2464.7,2464.6,0.00785622]
[1728820013793,9.30810294,2464.7,2464.6,0.00785622]
[1728820014234,10.45526556,2464.7,2464.6,0.00785622]
[1728820016062,8.62939567,2464.7,2464.6,0.00785622]
[1728820016469,5.62939567,2464.7,2464.6,0.00785622]
[1728820016762,1.14786982,2464.7,2464.6,0.75935622]
[1728820018688,0.29926311,2464.7,2464.6,0.75935622]
[1728820018875,0.29926311,2464.7,2464.6,1.24106484]
[1728820019073,0.84860671,2464.8,2464.7,0.7515]
[1728820019273,1.27285256,2464.9,2464.7,0.75935622]
[1728820019274,0.84860671,2464.9,2464.7,0.75935622]
[1728820019572,0.84860671,2465.0,2464.8,0.75935622]
[1728820019755,0.84860671,2464.9,2464.8,0.75935622]
[1728820019958,0.84860671,2464.9,2464.8,0.5376897]
[1728820020175,0.28891452,2464.9,2464.8,0.5376897]
[1728820020780,0.84860671,2465.1,2464.8,0.5376897]
[1728820020973,0.27933787,2465.0,2464.9,0.7515]
[1728820021544,8.96166671,2465.2,2464.9,0.7515]
[1728820021792,0.27617019,2465.1,2464.9,0.7515]
[1728820023155,0.27617019,2465.1,2465.0,1.28612097]
[1728820023363,0.27617019,2465.1,2465.0,1.29397719]
[1728820023562,0.84860671,2465.3,2465.0,1.29397719]
[1728820023763,0.84860671,2465.3,2465.2,0.00785622]
[1728820024453,0.84860671,2465.3,2465.2,0.75935622]
[1728820024655,0.84860671,2465.4,2465.2,1.29443094]
[1728820024998,4.05605,2465.5,2465.2,1.29443094]
[1728820024999,4.90465671,2465.5,2465.2,1.29443094]
[1728820025288,4.90465671,2465.5,2465.3,0.00785622]
[1728820025757,8.96074671,2465.5,2465.3,0.00785622]
[1728820026391,4.05613,2465.4,2465.3,0.00785622]
[1728820030613,4.05605,2465.5,2465.3,0.00785622]
[1728820030815,4.05605,2465.5,2465.3,0.48945284]
[1728820031898,4.05581,2465.6,2465.3,0.48945284]
[1728820032106,4.05581,2465.6,2465.3,0.48159662]
[1728820032321,4.90430671,2465.7,2465.4,0.8228]
[1728820032533,1.27285256,2465.8,2465.4,0.8228]
[1728820032534,7.90415671,2465.8,2465.4,0.8228]
[1728820032735,7.05555,2465.8,2465.7,0.00785622]
[1728820033038,4.05543,2465.9,2465.7,0.00785622]
[1728820033615,4.05547,2465.8,2465.7,0.00785622]
[1728820034657,8.62986,2465.8,2465.7,0.00785622]
[1728820035015,9.47846671,2465.8,2465.7,0.00785622]
[1728820035219,9.406619,2465.8,2465.7,0.00785622]
[1728820035423,10.719919,2465.8,2465.7,0.00785622]
[1728820035745,13.1523197,2465.8,2465.7,0.00785622]
[1728820036117,13.5703741,2465.8,2465.7,0.00785622]
[1728820036501,13.56845374,2465.8,2465.7,0.00785622]
[1728820036768,11.45515708,2465.8,2465.7,0.00785622]
[1728820037338,13.20265303,2465.8,2465.7,0.00785622]
[1728820037529,15.73860903,2465.8,2465.7,0.00785622]
[1728820039471,4.05745,2464.6,2464.5,0.8077]
[1728820039846,4.32442917,2464.6,2464.5,0.8077]
[1728820042945,0.26697917,2464.6,2464.5,0.8077]
[1728820043345,4.05729,2464.7,2464.5,0.8077]
[1728820043674,0.26684754,2464.6,2464.5,0.8077]
[1728820044677,4.32429754,2464.6,2464.5,0.8077]
[1728820047987,0.26684754,2464.6,2464.5,0.8077]
[1728820048195,4.05729,2464.7,2464.5,1.294255]
[1728820048381,4.05729,2464.7,2464.6,0.00785622]
[1728820049293,4.05714,2464.8,2464.6,0.00785622]
[1728820049452,4.05714,2464.8,2464.7,0.79925622]
[1728820050302,4.32362543,2464.8,2464.7,0.79925622]
[1728820051398,4.32362543,2464.8,2464.7,0.00785622]
[1728820054204,0.26648543,2464.8,2464.7,0.83375622]
[1728820054705,4.32360543,2464.8,2464.7,0.83375622]
[1728820056083,5.13930543,2464.8,2464.7,0.00785622]
[1728820057523,5.98469483,2464.8,2464.7,0.00785622]
[1728820057691,6.27028032,2464.8,2464.7,0.00785622]
[1728820058019,7.11566972,2464.8,2464.7,0.00785622]
[1728820060415,10.11566972,2464.8,2464.7,0.00785622]
[1728820060618,9.27028032,2464.8,2464.7,0.00785622]
[1728820060819,10.53836443,2464.8,2464.7,0.00785622]
[1728820061618,9.27028032,2464.8,2464.7,0.00785622]
[1728820061993,10.53836443,2464.8,2464.7,0.00785622]
[1728820063195,9.27028032,2464.8,2464.7,0.00785622]
[1728820063917,8.13930543,2464.8,2464.7,0.00785622]
[1728820064423,8.9864202,2464.8,2464.7,0.00785622]
[1728820067425,8.1707202,2464.8,2464.7,0.00785622]
[1728820074168,7.32360543,2464.8,2464.7,0.00785622]
[1728820074370,8.59168954,2464.8,2464.7,0.00785622]
[1728820074581,8.17095623,2464.8,2464.7,0.00785622]
[1728820075255,7.32360543,2464.8,2464.7,0.00785622]
[1728820075457,8.59168954,2464.8,2464.7,0.00785622]
[1728820075979,7.32360543,2464.8,2464.7,0.00785622]
[1728820076348,8.59168954,2464.8,2464.7,0.00785622]
[1728820079450,10.41723962,2464.8,2464.7,0.00785622]
[1728820079989,8.72646081,2464.8,2464.7,0.00785622]
[1728820080356,10.41723962,2464.8,2464.7,0.00785622]
[1728820081254,10.84557783,2464.8,2464.7,0.00785622]
[1728820081656,10.84953205,2464.8,2464.7,0.00785622]
[1728820083484,10.8499083,2464.8,2464.7,0.00785622]
[1728820086226,10.84998789,2464.8,2464.7,0.00785622]
[1728820090514,12.67135693,2464.8,2464.7,0.00785622]
[1728820090916,12.67162984,2464.8,2464.7,0.00785622]
[1728820092330,11.36582985,2464.8,2464.7,0.00785622]
[1728820092640,13.12185054,2464.8,2464.7,0.00785622]
[1728820092812,15.67041053,2464.8,2464.7,0.00785622]
[1728820093013,13.67185054,2464.8,2464.7,0.00785622]
[1728820093649,16.64517052,2464.8,2464.7,0.00785622]
[1728820093959,13.67185054,2464.8,2464.7,0.00785622]
[1728820094267,16.64295479,2464.8,2464.7,0.00785622]
[1728820094760,13.67185054,2464.8,2464.7,0.00785622]
[1728820095058,16.21872609,2464.8,2464.7,0.00785622]
[1728820095256,16.21842968,2464.8,2464.7,0.00785622]
[1728820095624,13.84706064,2464.8,2464.7,0.00785622]
[1728820095828,8.72646081,2464.8,2464.7,0.00785622]
[1728820096756,7.84876612,2464.8,2464.7,0.00785622]
[1728820098543,10.84876612,2464.8,2464.7,0.00785622]
[1728820099951,10.84903741,2464.8,2464.7,0.00785622]
[1728820104611,10.84990584,2464.8,2464.7,0.00785622]
[1728820105197,10.84989666,2464.8,2464.7,0.00785622]
[1728820105702,10.54987088,2464.8,2464.7,0.00785622]
[1728820107676,8.72646081,2464.8,2464.7,0.00785622]
[1728820107877,7.8498602,2464.8,2464.7,0.00785622]
[1728820108082,7.42524184,2464.8,2464.7,0.00785622]
[1728820108690,3.36812184,2464.8,2464.7,0.00785622]
[1728820108995,1.67114756,2464.8,2464.7,0.83665622]
[1728820109204,1.54056895,2464.8,2464.7,1.32608284]
[1728820109693,1.67108086,2464.8,2464.7,1.32608284]
[1728820110029,1.54051421,2464.8,2464.7,1.32608284]
[1728820111487,0.26648543,2464.8,2464.7,1.32608284]
[1728820111701,1.1158144,2464.8,2464.7,5.38336284]
[1728820111977,0.26648543,2464.8,2464.7,5.38336284]
[1728820112478,0.26648543,2464.8,2464.7,5.46449786]
[1728820113112,1.27402878,2465.2,2465.1,0.7523]
[1728820113113,0.84932897,2465.2,2465.1,0.7523]
[1728820113293,0.84932897,2465.2,2465.1,1.64675922]
[1728820113913,0.84932897,2465.2,2465.1,5.70338922]
[1728820114111,0.84932897,2465.3,2465.1,1.64675922]
[1728820114331,0.84932897,2465.3,2465.2,0.00785622]
[1728820114485,0.84932897,2465.3,2465.2,0.57820914]
[1728820114681,1.27402878,2465.4,2465.2,0.57820914]
[1728820114682,0.84932897,2465.4,2465.2,0.57820914]
[1728820114912,0.84932897,2465.4,2465.3,0.00785622]
[1728820115294,0.84932897,2465.5,2465.3,0.00785622]
[1728820117322,4.82743,2465.4,2465.3,0.00785622]
[1728820117640,7.20214955,2465.4,2465.3,0.00785622]
[1728820118190,7.19956685,2465.4,2465.3,0.00785622]
[1728820120359,10.19956685,2465.4,2465.3,0.00785622]
[1728820120500,10.32961462,2465.4,2465.3,0.00785622]
[1728820120700,12.02839565,2465.4,2465.3,0.00785622]
[1728820120909,12.02839565,2465.4,2464.7,0.752]
[1728820120910,12.02839565,2465.4,2464.7,0.70985622]
[1728820121111,4.05687,2465.0,2464.7,0.70985622]
[1728820121835,8.11381,2465.0,2464.7,0.70985622]
[1728820122116,4.05699,2464.9,2464.7,0.70985622]
[1728820123727,1.61876552,2465.1,2464.3,4.05781]
[1728820123728,4.05719,2464.8,2464.3,4.05781]
[1728820123930,8.11444,2464.8,2464.4,0.752]
[1728820124167,8.11444,2464.8,2464.7,0.00785622]
[1728820125269,4.31489427,2464.8,2464.7,0.00785622]
[1728820126069,8.93365979,2464.8,2464.7,0.00785622]
[1728820126234,7.3598436,2464.8,2464.7,0.00785622]
[1728820127198,10.3598436,2464.8,2464.7,0.00785622]
[1728820127401,10.78357636,2464.8,2464.7,0.00785622]
[1728820127999,11.33357636,2464.8,2464.7,0.00785622]
[1728820128185,13.16229404,2464.8,2464.7,0.00785622]
[1728820132804,11.46351301,2464.8,2464.7,0.00785622]
[1728820133137,13.58069891,2464.8,2464.7,0.00785622]
[1728820133626,13.15689671,2464.8,2464.7,0.00785622]
[1728820133988,11.46351301,2464.8,2464.7,0.00785622]
[1728820134190,13.58069891,2464.8,2464.7,0.00785622]
[1728820134405,11.46351301,2464.8,2464.7,0.00785622]
[1728820135429,13.15661794,2464.8,2464.7,0.00785622]
[1728820139650,11.46351301,2464.8,2464.7,0.00785622]
[1728820140135,13.15621157,2464.8,2464.7,0.00785622]
[1728820140441,11.46351301,2464.8,2464.7,0.00785622]
[1728820140641,13.15634428,2464.8,2464.7,0.00785622]
[1728820140810,11.46351301,2464.8,2464.7,0.00785622]
[1728820141208,13.57971631,2464.8,2464.7,0.00785622]
[1728820142359,11.46351301,2464.8,2464.7,0.00785622]
[1728820142569,14.00381606,2464.8,2464.7,0.00785622]
[1728820142729,11.88810189,2464.8,2464.7,0.00785622]
[1728820142930,14.0038381,2464.8,2464.7,0.00785622]
[1728820144463,11.88810189,2464.8,2464.7,0.00785622]
[1728820144971,14.00339764,2464.8,2464.7,0.00785622]
[1728820146346,13.58000895,2464.8,2464.7,0.00785622]
[1728820146531,6.00849702,2464.8,2464.7,0.00785622]
[1728820146879,5.16095899,2464.8,2464.7,0.00785622]
[1728820148167,8.16095899,2464.8,2464.7,0.00785622]
[1728820148351,9.13390814,2464.8,2464.7,0.00785622]
[1728820148554,9.93050814,2464.8,2464.7,0.00785622]
[1728820148883,11.70997724,2464.8,2464.7,0.00785622]
[1728820149276,11.70960227,2464.8,2464.7,0.00785622]
[1728820150468,9.93013317,2464.8,2464.7,0.00785622]
[1728820150664,9.50725028,2464.8,2464.7,0.00785622]
[1728820151295,8.16065028,2464.8,2464.7,0.00785622]
[1728820152128,7.31489427,2464.8,2464.7,0.00785622]
[1728820152416,4.31489427,2464.8,2464.7,0.00785622]
[1728820152970,0.25770427,2464.8,2464.7,0.78895622]
[1728820155467,0.25770427,2464.8,2464.7,1.27359584]
[1728820155813,0.25528731,2464.8,2464.7,0.78895622]
[1728820155968,8.11348,2465.1,2464.7,0.78895622]
[1728820156172,0.25528731,2464.8,2464.7,0.78895622]
[1728820156405,4.05689,2465.0,2464.7,0.78895622]
[1728820156710,0.25528731,2464.8,2464.7,0.78895622]
[1728820156866,4.05689,2465.0,2464.7,1.27360884]
[1728820157068,0.25528731,2464.8,2464.7,1.26575262]
[1728820157354,4.05706,2464.9,2464.7,0.78895622]
[1728820157496,0.25528731,2464.8,2464.7,0.78895622]
[1728820157837,0.25528731,2464.8,2464.7,0.7811]
[1728820160415,4.05747,2464.6,2464.2,0.8149]
[1728820160611,4.05769,2464.5,2464.2,0.8149]
[1728820160811,4.05763,2464.5,2464.2,0.8149]
[1728820161012,0.25528731,2464.4,2464.3,0.48731]
[1728820161344,0.25528731,2464.4,2464.3,0.49516622]
[1728820163301,0.25528731,2464.4,2464.3,1.31006622]
[1728820163504,4.05763,2464.5,2464.3,1.31006622]
[1728820163839,4.05732,2464.7,2464.3,1.31006622]
[1728820163840,0.25532624,2464.4,2464.3,1.31006622]
[1728820163997,4.05746,2464.6,2464.3,1.31006622]
[1728820164200,0.25532624,2464.4,2464.3,1.31006622]
[1728820164399,4.05746,2464.6,2464.3,1.31006622]
[1728820164628,0.25532624,2464.4,2464.3,1.31006622]
[1728820164842,4.05732,2464.7,2464.4,0.8149]
[1728820165082,4.05732,2464.7,2464.6,0.00785622]
[1728820165782,4.90307601,2464.7,2464.6,0.00785622]
[1728820166891,0.84575601,2464.8,2464.7,0.8149]
[1728820167038,5.3255989,2464.9,2464.7,0.82275622]
[1728820167039,0.84575601,2464.9,2464.7,0.82275622]
[1728820167243,0.84575601,2465.1,2464.8,4.06488622]
[1728820167536,0.84575601,2465.2,2465.0,0.82275622]
[1728820167762,1.2686389,2465.3,2465.2,0.8149]
[1728820167763,0.84575601,2465.3,2465.2,0.8149]
[1728820167977,0.84575601,2465.3,2465.2,0.82275622]
[1728820168138,1.2686389,2465.4,2465.2,0.82275622]
[1728820168139,0.84575601,2465.4,2465.2,0.82275622]
[1728820168342,0.84575601,2465.5,2465.3,0.00785622]
[1728820168741,1.2686389,2465.6,2465.3,0.00785622]
[1728820168742,0.84575601,2465.4,2465.3,0.00785622]
[1728820168954,0.84575601,2465.4,2465.3,0.49577884]
[1728820169155,4.90172601,2465.5,2465.3,0.49577884]
[1728820170238,0.24682433,2465.4,2465.3,0.49577884]
[1728820170666,0.24682433,2465.4,2465.3,0.00785622]
[1728820182765,4.30295433,2465.4,2465.3,0.00785622]
[1728820183300,7.30295433,2465.4,2465.3,0.00785622]
[1728820183475,8.14871034,2465.4,2465.3,0.00785622]
[1728820184009,8.06245433,2465.4,2465.3,0.00785622]
[1728820184212,10.83899026,2465.4,2465.3,0.00785622]
[1728820184369,9.57035136,2465.4,2465.3,0.00785622]
[1728820185317,10.83899026,2465.4,2465.3,0.00785622]
[1728820187211,11.5198531,2465.4,2465.3,0.00785622]
[1728820187383,13.63528905,2465.4,2465.3,0.00785622]
[1728820187623,11.5198531,2465.4,2465.3,0.00785622]
[1728820188822,13.26937068,2465.4,2465.3,0.00785622]
[1728820189013,11.5198531,2465.4,2465.3,0.00785622]
[1728820189213,15.80855211,2465.4,2465.3,0.00785622]
[1728820189446,13.26963284,2465.4,2465.3,0.00785622]
[1728820189661,11.5198531,2465.4,2465.3,0.00785622]
[1728820190210,13.26993422,2465.4,2465.3,0.00785622]
[1728820191256,15.80931005,2465.4,2465.3,0.00785622]
[1728820193321,13.26993422,2465.4,2465.3,0.00785622]
[1728820194232,15.81084715,2465.4,2465.3,0.00785622]
[1728820194622,13.26993422,2465.4,2465.3,0.00785622]
[1728820195593,15.811542,2465.4,2465.3,0.00785622]
[1728820195978,13.26993422,2465.4,2465.3,0.00785622]
[1728820199794,13.69453271,2465.4,2465.3,0.00785622]
[1728820203188,14.30467147,2465.4,2465.3,0.00785622]
[1728820203392,34.29467147,2465.4,2465.3,0.00785622]
[1728820203631,4.05794,2464.3,2464.2,0.8297]
[1728820204036,4.30060663,2464.3,2464.2,0.8297]
[1728820205999,4.30060663,2464.3,2464.2,0.83755622]
[1728820207649,7.30060663,2464.3,2464.2,0.00785622]
[1728820208919,8.14743596,2464.3,2464.2,0.00785622]
[1728820209111,9.57641496,2464.3,2464.2,0.00785622]
[1728820209564,8.72958563,2464.3,2464.2,0.00785622]
[1728820210319,10.12641496,2464.3,2464.2,0.00785622]
[1728820210646,11.42997435,2464.3,2464.2,0.00785622]
[1728820210796,11.29992581,2464.3,2464.2,0.00785622]
[1728820210998,11.42996231,2464.3,2464.2,0.00785622]
[1728820211200,11.29992388,2464.3,2464.2,0.00785622]
[1728820213444,10.87617255,2464.3,2464.2,0.00785622]
[1728820213964,10.03078563,2464.3,2464.2,0.00785622]
[1728820214297,10.87618171,2464.3,2464.2,0.00785622]
[1728820216371,7.30060663,2464.3,2464.2,0.00785622]
[1728820216530,4.30060663,2464.3,2464.2,0.00785622]
[1728820217119,4.30060663,2464.3,2464.2,0.76225622]
[1728820217576,0.24266663,2464.3,2464.2,0.76225622]
[1728820217793,4.05771,2464.5,2464.2,0.76225622]
[1728820218160,4.05771,2464.5,2464.3,0.7544]
[1728820218161,0.24220615,2464.4,2464.3,0.7544]
[1728820218371,0.24220615,2464.4,2464.3,0.76225622]
[1728820218667,4.29998615,2464.4,2464.3,0.76225622]
[1728820219572,0.24220615,2464.4,2464.3,0.76225622]
[1728820220472,4.29998615,2464.4,2464.3,0.76225622]
[1728820221295,0.24220615,2464.4,2464.3,0.76225622]
[1728820222707,4.05746,2464.6,2464.3,0.76225622]
[1728820222887,0.24232055,2464.4,2464.3,0.76225622]
[1728820223082,7.05722,2464.8,2464.4,0.7544]
[1728820223083,4.05732,2464.7,2464.4,0.7544]
[1728820223289,4.05732,2464.7,2464.3,0.48989084]
[1728820223290,7.05732,2464.7,2464.6,0.00785622]
[1728820223512,7.05732,2464.7,2464.6,0.76225622]
[1728820229223,7.90271608,2464.7,2464.6,0.76225622]
[1728820230043,4.05732,2464.7,2464.6,0.76225622]
[1728820230188,4.29631806,2464.7,2464.6,0.76225622]
[1728820230389,5.14171414,2464.7,2464.6,0.76225622]
[1728820233127,5.14171414,2464.7,2464.6,0.00785622]
[1728820233427,5.14423684,2464.7,2464.6,0.00785622]
[1728820234311,4.29631806,2464.7,2464.6,0.00785622]
[1728820234503,5.56545631,2464.7,2464.6,0.00785622]
[1728820234828,5.14432927,2464.7,2464.6,0.00785622]
[1728820236425,4.29631806,2464.7,2464.6,0.00785622]
[1728820237341,5.56545631,2464.7,2464.6,0.00785622]
[1728820237533,5.14442755,2464.7,2464.6,0.00785622]
[1728820240814,10.65046076,2464.7,2464.6,0.00785622]
[1728820241144,12.47733957,2464.7,2464.6,0.00785622]
[1728820243953,11.68773957,2464.7,2464.6,0.00785622]
[1728820244166,10.39233512,2464.7,2464.6,0.00785622]
[1728820244467,8.69856627,2464.7,2464.6,0.00785622]
[1728820244637,10.39222493,2464.7,2464.6,0.00785622]
[1728820245039,11.66410661,2464.7,2464.6,0.00785622]
[1728820245249,8.56819974,2464.7,2464.6,0.00785622]
[1728820245423,8.69852819,2464.7,2464.6,0.00785622]
[1728820245629,8.69854183,2464.7,2464.6,0.00785622]
[1728820245822,10.39220049,2464.7,2464.6,0.00785622]
[1728820246438,12.12416293,2464.7,2464.6,0.00785622]
[1728820246842,11.18090427,2464.7,2464.6,0.00785622]
[1728820247161,13.30070818,2464.7,2464.6,0.00785622]
[1728820247868,12.87659287,2464.7,2464.6,0.00785622]
[1728820250264,11.18090427,2464.7,2464.6,0.00785622]
[1728820250643,12.87626572,2464.7,2464.6,0.00785622]
[1728820253087,11.18090427,2464.7,2464.6,0.00785622]
[1728820253288,12.87584287,2464.7,2464.6,0.00785622]
[1728820253675,8.69854183,2464.7,2464.6,0.00785622]
[1728820254050,10.39348043,2464.7,2464.6,0.00785622]
[1728820254253,8.56757446,2464.7,2464.6,0.00785622]
[1728820254448,10.3928143,2464.7,2464.6,0.00785622]
[1728820257648,10.39363925,2464.7,2464.6,0.00785622]
[1728820257845,12.12624128,2464.7,2464.6,0.00785622]
[1728820259408,10.43047773,2464.7,2464.6,0.00785622]
[1728820259615,12.54933878,2464.7,2464.6,0.00785622]
[1728820261274,10.81673675,2464.7,2464.6,0.00785622]
[1728820261619,7.81673675,2464.7,2464.6,0.00785622]
[1728820261773,7.3960527,2464.7,2464.6,0.00785622]
[1728820261973,3.3387327,2464.7,2464.6,0.82585622]
[1728820262373,1.51283422,2464.7,2464.6,0.82585622]
[1728820262612,1.64377385,2464.7,2464.6,0.82585622]
[1728820263023,7.39923085,2464.7,2464.6,0.82585622]
[1728820264285,3.34195085,2464.7,2464.6,0.82585622]
[1728820265505,7.39923085,2464.7,2464.6,0.82585622]
[1728820268543,7.82421866,2464.7,2464.6,0.00785622]
[1728820268752,8.58051866,2464.7,2464.6,0.00785622]
[1728820270200,7.82421866,2464.7,2464.6,0.00785622]
[1728820272648,5.70105385,2464.7,2464.6,0.00785622]
[1728820272821,7.82432355,2464.7,2464.6,0.00785622]
[1728820275144,7.82453004,2464.7,2464.6,0.00785622]
[1728820275350,5.70105385,2464.7,2464.6,0.00785622]
[1728820275649,7.82466806,2464.7,2464.6,0.00785622]
[1728820276326,5.70105385,2464.7,2464.6,0.00785622]
[1728820276649,7.82466806,2464.7,2464.6,0.00785622]
[1728820277414,5.70105385,2464.7,2464.6,0.00785622]
[1728820277934,7.82462209,2464.7,2464.6,0.00785622]
[1728820278256,7.39995032,2464.7,2464.6,0.00785622]
[1728820278850,7.39995032,2464.7,2464.6,0.82245622]
[1728820280954,7.39995032,2464.7,2464.6,0.00785622]
[1728820281157,5.70105385,2464.7,2464.6,0.00785622]
[1728820281455,7.39980767,2464.7,2464.6,0.00785622]
[1728820285238,7.05910444,2464.7,2464.6,0.00785622]
[1728820289070,9.18148343,2464.7,2464.6,0.00785622]
[1728820289283,7.82343284,2464.7,2464.6,0.00785622]
[1728820290743,5.70105385,2464.7,2464.6,0.00785622]
[1728820291143,8.70105385,2464.7,2464.6,0.00785622]
[1728820292460,9.45355385,2464.7,2464.6,0.00785622]
[1728820292651,11.60931651,2464.7,2464.6,0.00785622]
[1728820292848,13.36424541,2464.7,2464.6,0.00785622]
[1728820293159,16.33567857,2464.7,2464.6,0.00785622]
[1728820293359,13.36424541,2464.7,2464.6,0.00785622]
[1728820295057,0.8143,2464.5,2463.4,0.5]
[1728820295258,4.05926,2463.5,2463.4,0.5]
[1728820295971,4.33764835,2463.5,2463.4,0.5]